Cogmind - Beta 15 @@@ ROGUE MODE // 2025.07.26 @ 14:10:15 Player: s0lid Result: Self-destructed Performance ------------- Evolutions (2) 1000 Regions Visited (5) 1000 Robots Destroyed (23) 115 Value Destroyed (540) 540 Prototype IDs (0) 0 Alien Tech Used (0) 0 Bonus (127) 127 TOTAL SCORE: 2782 Bonus ------- Follower Combat Kills 127 Cogmind --------- Core Integrity 292/550 Matter 300/300 Energy 160/160 System Corruption 0% Temperature Cool (9) Movement Core (1550) Ox30 Location -8/Materials Parts ------- > --- POWER (1) -------- Light Nuclear Core > --- PROPULSION (4) --- (None) > --- UTILITY (4) ------ Improved Heat Sink Huge Storage Unit Transport Network Coupler Hacking Suite > --- WEAPON (2) ------- Spread Laser Heavy Assault Rifle > --- INVENTORY (25) --- Light Ion Engine Light Nuclear Core Light Nuclear Core Improved Heat Sink Improved Heat Sink Cooling System Large Storage Unit Humpback High-capacity Matter Pod (200) High-capacity Matter Pod (200) Trap Scanner Improved Terrain Scanner Terrain Scan Processor Recoil Stabilizer Particle Charger Improved Power Shielding Improved Light Armor Plating Improved Light Armor Plating Authchip [Power] Authchip [Propulsion] Authchip [Weapon] Light Assault Rifle Improved Datajack Mining Laser Peak State ------------ > --- POWER ------------ Light Nuclear Core > --- PROPULSION ------- Wheel Armored Wheel Armored Wheel > --- UTILITY ---------- Improved Heat Sink Huge Storage Unit Transport Network Coupler Hacking Suite > --- WEAPON ----------- Spread Laser Heavy Assault Rifle > --- INVENTORY -------- Light Ion Engine Light Nuclear Core Light Nuclear Core Improved Heat Sink Improved Heat Sink Cooling System Large Storage Unit Humpback High-capacity Matter Pod High-capacity Matter Pod Trap Scanner Improved Terrain Scanner Terrain Scan Processor Recoil Stabilizer Particle Charger Improved Power Shielding Improved Light Armor Plating Improved Light Armor Plating Authchip [Power] Authchip [Propulsion] Authchip [Weapon] Light Assault Rifle Improved Datajack Mining Laser [Rating: 26] Favorites ----------- Power Ion Engine Engine Ion Engine Power Core Light Nuclear Core Propulsion Wheel Wheel Wheel Utility Seismic Detector Device Seismic Detector Storage Large Storage Unit Processor Transport Network Coupler Hackware Hacking Suite Weapon Small Laser Energy Gun Small Laser Ballistic Gun Assault Rifle Special Weapon Mining Laser Special Melee Weapon Improved Datajack Build | -11 -10 -10 -10 -9 -8 ------- Run | Yrd Mat Min Exi Min Mat Slots Evolved 4 | . . . . . 4 Power . | . . . . . . Propulsion 2 | . . . . . 2 Utility 2 | . . . . . 2 Weapon . | . . . . . . Parts Attached 32 | 7 . 2 1 3 19 Power 4 | 1 . . . . 3 Engine 2 | 1 . . . . 1 Core 2 | . . . . . 2 Reactor . | . . . . . . Propulsion 8 | 2 . . . . 6 Treads . | . . . . . . Leg . | . . . . . . Wheel 8 | 2 . . . . 6 Hover . | . . . . . . Flight . | . . . . . . Utility 12 | 2 . 2 1 1 6 Device 6 | 1 . 1 . 1 3 Storage 4 | 1 . 1 1 . 1 Processor 1 | . . . . . 1 Hackware 1 | . . . . . 1 Protection . | . . . . . . Artifact . | . . . . . . Weapon 8 | 2 . . . 2 4 Energy Gun 3 | 1 . . . 1 1 Energy Cannon . | . . . . . . Ballistic Gun 3 | 1 . . . 1 1 Ballistic Cannon . | . . . . . . Launcher . | . . . . . . Special Weapon 1 | . . . . . 1 Impact Weapon . | . . . . . . Slashing Weapon . | . . . . . . Piercing Weapon . | . . . . . . Special Melee Weapon 1 | . . . . . 1 Unidentified Prototypes . | . . . . . . Parts Lost 11 | . . . . 2 9 Power 2 | . . . . . 2 Propulsion 7 | . . . . . 7 Utility 1 | . . . . 1 . Weapon 1 | . . . . 1 . Highest Loss Streak 3 | . . . . 2 3 To Critical Strikes . | . . . . . . Average Backups 11 | 1 5 9 10 13 17 Power 1 | . . . 1 1 2 Propulsion 2 | . 3 3 3 3 1 Utility 6 | . 1 3 4 7 12 Weapon 1 | . 1 1 2 2 1 Tool/Special . | . . . . . . Unused Backups 16 | . . 1 2 . 13 Power 2 | . . . . . 2 Propulsion 1 | . . 1 . . . Utility 13 | . . . 2 . 11 Weapon . | . . . . . . Tool/Special . | . . . . . . Average Slot Usage (%) 97 | . 100 100 100 97 95 Engine 10 | . 14 14 14 14 4 Core 1 | . . . . . 4 Wheel 29 | . 28 28 28 28 32 Device 14 | . 14 14 14 12 15 Storage 12 | . 14 14 14 14 9 Processor 2 | . . . . . 8 Energy Gun 12 | . 14 14 14 14 8 Ballistic Gun 11 | . 14 14 14 13 6 Peak Build Rating 26 | 7 7 8 8 10 26 Average Rating 12 | 5 7 7 8 7 22 On Entrance 6 | . 7 7 8 8 10 Naked Turns . | . . . . . . Heaviest Build 93 | 14 14 19 29 29 93 Greatest Support 46 | 26 26 26 26 26 46 Greatest Overweight (x) 7 | . . . 1 1 7 Average Overweight (x) . | . . . . . 1 Largest Inventory Capacity 25 | 8 8 10 15 15 25 Average Capacity 14 | 7 8 9 13 15 22 Most Carried 25 | 5 6 10 14 14 25 Average Carried 12 | 1 5 9 10 13 18 Final Capacity 25 | 8 8 10 15 15 25 Final Carried 25 | 5 6 10 14 14 25 Class Distribution -------------------- 71% | Mutant 28% | Scavenger-Mutant Dominant Class ---------------- Mutant | -10/Materials Mutant | -10/Mines Mutant | -10/Exiles Mutant | -9/Mines Scavenger-Mutant | -8/Materials Resources | -11 -10 -10 -10 -9 -8 ----------- Run | Yrd Mat Min Exi Min Mat Matter Collected 680 | 261 . 71 30 55 263 Remotely . | . . . . . . Salvage Created 773 | 56 . 38 . 90 589 Parts 46 | 10 . 7 . 4 25 Haulers Intercepted 2 | . . . . . 2 Recyclers Shooed . | . . . . . . Parts Field Recycled . | . . . . . . Retrieved Matter . | . . . . . . Parts Self-Destructed . | . . . . . . Prevented . | . . . . . . Kills | -11 -10 -10 -10 -9 -8 ------- Run | Yrd Mat Min Exi Min Mat Combat Hostiles Destroyed 12 | . . . . 4 8 Guns 12 | . . . . 4 8 Classes Destroyed 8 | 1 . . . 2 5 Builder 1 | . . . . . 1 Tunneler 5 | 3 . 2 . . . Hauler 2 | . . . . . 2 Recycler 2 | . . . . . 2 Watcher 1 | . . . . . 1 Swarmer 3 | . . . . 3 . Grunt 7 | . . . . 1 6 Sentry 2 | . . . . . 2 Best Kill Streak 3 | 2 . 1 . 3 3 Combat Bots Only 3 | . . . . 3 2 Max Kills in Single Turn 1 | 1 . 1 . 1 1 Gunslinging . | . . . . . . Exploded . | . . . . . . Melee . | . . . . . . Uniques/NPCs Destroyed . | . . . . . . Combat | -11 -10 -10 -10 -9 -8 -------- Run | Yrd Mat Min Exi Min Mat Hostile Shots Fired 116 | . . . . 27 89 Missed 27 | . . . . 5 22 Hits 89 | . . . . 22 67 Melee 2 | . . . . . 2 Projectile 87 | . . . . 22 65 Critical Strikes 2 | . . . . . 2 Damage Taken 1400 | . . . . 268 1132 Core 271 | . . . . 13 258 Absorbed by Shields . | . . . . . . Regen/Repaired (Parts) 79 | . . . . . 79 Core Remaining (%) 97 | 100 . . . 94 . Volleys Fired 83 | 12 . 2 . 18 51 Largest 2 | 2 . 2 . 2 2 Hottest 100 | 60 . 60 . 60 100 Shots Fired 144 | 24 . 4 . 33 83 Gun 139 | 24 . 4 . 33 78 Cannon . | . . . . . . Launcher . | . . . . . . Special 5 | . . . . . 5 Kinetic 62 | 12 . 2 . 15 33 Thermal 82 | 12 . 2 . 18 50 Explosive . | . . . . . . Electromagnetic . | . . . . . . Robot Hit Streak 14 | 6 . 6 . 12 14 Robot Miss Streak 5 | 2 . . . 1 5 Penetration Max . | . . . . . . Secondary Targets 4 | . . . . 2 2 Max Gunslinging Chain 1 | . . . . 1 1 Shots Hit Robots 109 | 15 . 2 . 25 67 Core Hits 90 | 3 . 2 . 7 78 Critical Kills . | . . . . . . Critical Parts Destroyed 1 | . . . . 1 . Critical Strikes 1 | . . . . 1 . Destroy 1 | . . . . 1 . Melee Attacks . | . . . . . . Impact . | . . . . . . Slashing . | . . . . . . Piercing . | . . . . . . Sneak Attacks . | . . . . . . Combat Hostiles . | . . . . . . Follow-up Attacks . | . . . . . . Damage Inflicted 1489 | 190 . 24 . 287 988 Guns 1455 | 190 . 24 . 287 954 Cannons . | . . . . . . Explosions . | . . . . . . Melee . | . . . . . . Ramming 34 | . . . . . 34 Kinetic 527 | 112 . . . 121 294 Thermal 928 | 78 . 24 . 166 660 Explosive . | . . . . . . Electromagnetic . | . . . . . . Impact . | . . . . . . Slashing . | . . . . . . Piercing . | . . . . . . Highest Corruption . | . . . . . . Average Corruption . | . . . . . . Corruption Purged . | . . . . . . Corruption Blocked . | . . . . . . Overload Shots . | . . . . . . Overflow Damage 4 | . . . . . 4 Projectiles . | . . . . . . Explosions . | . . . . . . Melee 4 | . . . . . 4 Knockbacks . | . . . . . . Impact . | . . . . . . Kinetic . | . . . . . . Secondary . | . . . . . . Self-Inflicted Damage 17 | . . . . . 17 Shots . | . . . . . . Rammed 1 | . . . . . 1 Targets Rammed 1 | . . . . . 1 Kicked . | . . . . . . Crushed . | . . . . . . Highest Temperature 99 | . . . . 99 35 Average Temperature 42 | . . . . 62 8 Received Heat Transfer 603 | . . . . 135 468 Siege Activations . | . . . . . . Martial Activations . | . . . . . . Shielding Activations . | . . . . . . Robots Disrupted . | . . . . . . Combat Hostiles . | . . . . . . Robots Corrupted 1 | . . . . . 1 Combat Hostiles . | . . . . . . Parts Fried 2 | . . . . . 2 Impact Corruptions 1 | . . . . . 1 Robots Melted . | . . . . . . Combat Hostiles . | . . . . . . Parts Melted 2 | . . . . 1 1 Heat Transferred 1430 | 175 . 50 . 375 830 Parts Sabotaged . | . . . . . . Parts Stolen . | . . . . . . Parts Stripped . | . . . . . . Power Chain Reactions . | . . . . . . Alert | -11 -10 -10 -10 -9 -8 ------- Run | Yrd Mat Min Exi Min Mat Maximum Alert Level . | . . . . . . Low Security (%) 100 | 100 100 100 . 100 100 Level 1 . | . . . . . . Level 2 . | . . . . . . Level 3 . | . . . . . . Level 4 . | . . . . . . Level 5 . | . . . . . . High Security . | . . . . . . Max Security . | . . . . . . Peak Influence 102 | 10 6 32 . 95 102 Initial 8 | . . . . . 8 Average 19 | 1 . 3 . 42 28 Influence Increases 552 | 15 6 62 . 148 321 Destroy 0b10 Robot/C 340 | . . 40 . 120 180 Destroy 0b10 Robot/NC 55 | 15 . 10 . . 30 Destroy Leader 76 | . . 10 . 20 46 Allied During Kill 14 | . . 2 . 8 4 Trap Triggered on 0b10 10 | . . . . . 10 Successful Hack 35 | . 6 . . . 29 Disable Machine 15 | . . . . . 15 Destroy Structure 7 | . . . . . 7 Influence Decreases 468 | 15 6 60 2 125 260 Entered New Map 17 | . . . 2 . 15 Time Decay 330 | 15 6 40 . 115 154 Lost Part 71 | . . . . 10 61 Lost Ally 50 | . . 20 . . 30 Squads Dispatched 3 | . 1 . . . 2 Investigation 1 | . . . . . 1 Extermination . | . . . . . . Reinforcement 2 | . 1 . . . 1 Assault . | . . . . . . Garrison . | . . . . . . Intercept . | . . . . . . Searches Triggered . | . . . . . . Construction Impeded 1 | . . . . . 1 Haulers Reinforced . | . . . . . . Active Scanning Responses . | . . . . . . Cargo Convoy Interrupts . | . . . . . . Stealth | -11 -10 -10 -10 -9 -8 --------- Run | Yrd Mat Min Exi Min Mat Distress Signals 6 | . 1 . . . 5 Communications Jammed . | . . . . . . Distress Signals . | . . . . . . Times Spotted 28 | . 2 . . 5 21 Peak Tracking Total 5 | . 1 . . 2 5 Tactical Retreats . | . . . . . . Traps | -11 -10 -10 -10 -9 -8 ------- Run | Yrd Mat Min Exi Min Mat Traps Triggered . | . . . . . . Indirectly . | . . . . . . Trap Hack Attempts 25 | . . . . . 25 Triggered . | . . . . . . Disarmed . | . . . . . . Reprogrammed 3 | . . . . . 3 Reused 1 | . . . . . 1 Traps Extracted . | . . . . . . Installed . | . . . . . . Triggered 1 | . . . . . 1 Machines | -11 -10 -10 -10 -9 -8 ---------- Run | Yrd Mat Min Exi Min Mat Machines Disabled 1 | . . . . . 1 Max in Single Turn 1 | . . . . . 1 Machines Repaired . | . . . . . . Machines Dismantled . | . . . . . . Machines Sabotaged . | . . . . . . Overloaded Fab Kills . | . . . . . . Hacking | -11 -10 -10 -10 -9 -8 --------- Run | Yrd Mat Min Exi Min Mat Machines Accessed 8 | . 3 . 1 . 4 Terminals 5 | . 3 . . . 2 Fabricators . | . . . . . . Repair Stations 1 | . . . . . 1 Recycling Units 1 | . . . . . 1 Scanalyzers . | . . . . . . Garrison Access . | . . . . . . Total Hacks 43 | . 7 . 23 . 13 Successful 33 | . 2 . 23 . 8 Failed 10 | . 5 . . . 5 Catastrophic 1 | . 1 . . . . Database Lockouts . | . . . . . . Manual 11 | . 6 . . . 5 Terminals 15 | . 7 . . . 8 Fabricators . | . . . . . . Repair Stations 2 | . . . . . 2 Recycling Units 3 | . . . . . 3 Scanalyzers . | . . . . . . Garrison Access . | . . . . . . Terminal Hacks 25 | . 2 . 23 . . Record 23 | . . . 23 . . Robot Analysis 1 | . 1 . . . . Locate Traps 1 | . 1 . . . . Fabricator Hacks . | . . . . . . Repair Station Hacks 2 | . . . . . 2 Scan Component 1 | . . . . . 1 Repair 1 | . . . . . 1 Recycling Unit Hacks 3 | . . . . . 3 Process 1 | . . . . . 1 Report Inventory 1 | . . . . . 1 Retrieve Matter 1 | . . . . . 1 Scanalyzer . | . . . . . . Garrison Access Hacks . | . . . . . . Unauthorized Hacks 3 | . . . . . 3 Terminals 3 | . . . . . 3 Track 1 | . . . . . 1 Assimilate 1 | . . . . . 1 Botnet 1 | . . . . . 1 Fabricators . | . . . . . . Repair Stations . | . . . . . . Recycling Units . | . . . . . . Scanalyzers . | . . . . . . Garrison Access . | . . . . . . Data Cores Recovered . | . . . . . . Used . | . . . . . . Hacking Detections 6 | . 3 . . . 3 Full Trace Events 1 | . . . . . 1 Feedback Events . | . . . . . . Feedback Blocked . | . . . . . . Robot Schematics Acquired . | . . . . . . Robots Built . | . . . . . . Authchips . | . . . . . . Time . | . . . . . . Total Robot Build Rating . | . . . . . . Part Schematics Acquired . | . . . . . . Parts Built . | . . . . . . Authchips . | . . . . . . Time . | . . . . . . Total Part Build Rating . | . . . . . . Parts Repaired 1 | . . . . . 1 Time 16 | . . . . . 16 Parts Recycled . | . . . . . . Recycled Matter 27 | . . . . . 27 Retrieved Matter 27 | . . . . . 27 Retrieved Components . | . . . . . . Parts Scanalyzed . | . . . . . . Part Schematics Acquired . | . . . . . . Parts Damaged . | . . . . . . Bothacking | -11 -10 -10 -10 -9 -8 ------------ Run | Yrd Mat Min Exi Min Mat Used RIF Installer . | . . . . . . Robots Hacked . | . . . . . . Non-combat . | . . . . . . Combat . | . . . . . . Robot Hacks Applied . | . . . . . . Relay Couplers Released . | . . . . . . Fabnet Peak Effective % . | . . . . . . Robots Rewired . | . . . . . . Allies Hacked . | . . . . . . Hacks Repelled . | . . . . . . Allies | -11 -10 -10 -10 -9 -8 -------- Run | Yrd Mat Min Exi Min Mat Total Allies 4 | . . 3 . . 1 Largest Group 3 | . . 3 2 1 2 Highest-Rated Group 40 | . . 40 24 16 26 Highest-Rated Ally 16 | . . 16 16 16 16 Total Orders . | . . . . . . Ally Attacks 38 | . . 10 . 4 24 Total Damage 371 | . . 127 . 30 214 Kills 5 | . . 2 . 2 1 Allies Corrupted . | . . . . . . Allies Melted . | . . . . . . Intel | -11 -10 -10 -10 -9 -8 ------- Run | Yrd Mat Min Exi Min Mat Active Infowar (turns) 1424 | 44 146 314 233 202 485 Terrain 331 | . . . . . 331 Seismic 939 | 44 146 314 233 202 . T.N.C. 485 | . . . . . 485 Robot Analysis Total 1 | . 1 . . . . Derelict Logs Recovered 2 | . . 1 . 1 . Drone Launches . | . . . . . . Drone Recoveries . | . . . . . . Exploration | -11 -10 -10 -10 -9 -8 ------------- Run | Yrd Mat Min Exi Min Mat Turns Passed 1538 | 116 146 314 233 240 489 Spaces Moved 1150 | 73 155 303 228 157 234 Core 2 | 2 . . . . . Treads . | . . . . . . Legs . | . . . . . . Wheels 1148 | 71 155 303 228 157 234 Hover . | . . . . . . Flight . | . . . . . . Fastest Speed 50 | 50 90 90 90 90 82 Average Speed 96 | 88 90 90 99 104 103 Slowest Speed 195 | 90 90 90 105 105 195 Overloaded Moves . | . . . . . . Propulsion Burnouts . | . . . . . . Robots Hopped . | . . . . . . Potential Cave-ins . | . . . . . . Cave-ins Triggered . | . . . . . . Exploration Rate (%) 32 | 4 30 44 54 41 23 Regions Visited 5 Branch Regions 3 Pre-discovered Areas 2 | . . 1 1 . . Known Exits Taken . | . . . . . . Unknown Exits Taken 5 | 1 1 1 1 1 . Scrap Searched . | . . . . . . Spaces Dug 5 | . . . . . 5 Terrain Destroyed 5 | . . . . . 5 Melee . | . . . . . . Projectile 5 | . . . . . 5 AOE . | . . . . . . Terrain Rammed . | . . . . . . Walls Destroyed . | . . . . . . Machines Disabled . | . . . . . . Actions | -11 -10 -10 -10 -9 -8 --------- Run | Yrd Mat Min Exi Min Mat Total 1415 | 96 161 340 236 199 383 Wait 84 | . 6 27 . 22 29 Move 1145 | 72 154 302 227 156 234 Hop . | . . . . . . Pick Up 31 | 5 1 5 5 . 15 Fast Attach 12 | 7 . . . 1 4 Attach 8 | . . . . 1 7 Detach . | . . . . . . Swap 17 | . . 2 1 1 13 Drop 9 | . . 2 3 . 4 Fire 83 | 12 . 2 . 18 51 Melee . | . . . . . . Ram 1 | . . . . . 1 Kick . | . . . . . . Crush . | . . . . . . Escape Stasis . | . . . . . . Rewire . | . . . . . . Trap 25 | . . . . . 25 Miscellaneous . | . . . . . . Route ------- -11/Scrapyard -10/Materials -10/Mines (discovered 2 exits: [*Mat] / *Exi) -10/Exiles -9/Mines -8/Materials History --------- Turn | Location | Event 52 | -11/Scrapyard | Discovered new exit (range 15) 117 | -11/Scrapyard | Entered Materials 159 | -10/Materials | Discovered new exit (range 16) 263 | -10/Materials | Entered Mines 307 | -10/Mines | Build established: Mutant 371 | -10/Mines | Learned location of Zion (-6) 385 | -10/Mines | Deemed a non-threat by the Exiles lab entrance 386 | -10/Mines | Discovered new exit (range 5) 443 | -10/Mines | Assisted by bots powering up and referring to "LRC-V3" 469 | -10/Mines | Discovered new exit (range 7) 577 | -10/Mines | Entered Exiles 577 | -10/Exiles | Accompanied by 2 allies 599 | -10/Exiles | Met 8R-AWN 617 | -10/Exiles | Met EX-HEX 674 | -10/Exiles | Met EX-DEC 800 | -10/Exiles | Discovered new exit (range 12) 810 | -10/Exiles | Entered Mines 810 | -9/Mines | Accompanied by 1 ally 851 | -9/Mines | Learned Materials security intel 987 | -9/Mines | Discovered new exit (range 3) 1050 | -9/Mines | Entered Materials 1050 | -8/Materials | Accompanied by 1 ally 1050 | -8/Materials | Evolved 4 slots: Propulsion x2, Utility x2 1326 | -8/Materials | Build established: Scavenger-Mutant 1404 | -8/Materials | Repaired Spread Laser 1538 | -8/Materials | Lost 3 parts (3n) 1539 | -8/Materials | Self-destructed Last Messages --------------- 01492_ Wheel destroyed. 01492_ Acquired Authchip [Power]. 01492_ R-06 Scavenger collects Lgt. Ion Engine. 01494_ Acquired Authchip [Weapon]. 01496_ R-06 Scavenger collects Hvy. Particle Cannon. 01496_ Acquired Authchip [Propulsion]. 01505_ Wheel destroyed. 01507_ Arm. Wheel destroyed. 01509_ G-47 Trooper destroyed. 01514_ W-25 Informer sends out distress signal. 01518_ G-47 Trooper destroyed. 01519_ Acquired 12 matter. 01522_ K-01 Serf collects debris. 01528_ Acquired 3 matter. 01530_ K-01 Serf collects debris. 01531_ Acquired 3 matter. 01533_ K-01 Serf collects debris. 01534_ Acquired 3 matter. 01537_ K-01 Serf collects debris. 01538_ Arm. Wheel destroyed. Map ----- +----------------------------------------------------+ | ?????????????????????????????????????????????????? | | ?????????????????????????????????????????????????? | | ?????????????????????????????????????????????????? | | ?????????????????????????????????????????????????? | | ?????????????????????????????????????????????????? | | ?????????????????????????????????????????????????? | | ?????????????????????????????????????????????????? | | ?????????????????????????????????????????????????? | | ?????????????????????????????????????????????????? | | ?????????????????????????????????????????????????? | | ????????????????????????#######??????????????????? | | ???????????????????????# ! #??????????????????? | | ???????????????????????# #??????????????????? | | ???????????????????? ??#! #??????????????????? | | ???????????????????? ?# #??????????????????? | | ????????????????????? ?# /[[ ############???????# | | ????????????????????? ?# /[ ## ##?????#? | | ???a????????????????? ?# /[ ## ######### | | ????????????????????? ?# ## """ """ ## # | | ????????????????????? # ## """ """ ## """ # | | ?????????????????????# # """ ## """ " " ## "R # | | ?????????????????????# # """ # == ## """ # | | ?????????????????????# # !""" ## !*%! ## "" # | | ?????????????????????# #%%! ## = ## # | | ?????????????????????# ##k###########+########+### | | ?????????????????????# g[@* ]] % | | ?????????????? /g ![! %] % % | | ????????????# """"" #g =%|]= % | | ????????????????"""??###########+#############+### | | ?????????????????????????????? ??#??###! # | | ???????????????????????????? [ ????##%!% =# | | ???????????????????????????# ##??# === # | | ???????????????????????????# ##???# """ # | | ???????????????????????????# #????# """ # | | ???????????????????????????# ]! #??#?# """ # | | ???????????????????????????# ] ###??######## | | ???????????????????????????# #????#?????## | | ???????????????????????????##############?#??#??## | | ?????????????????????????????????# #?????###T | | ?????????????????????????????????# """ ##?#????## | | ?????????????????????????????????# "Y" ########## | | ?????????????????????????????????# !+%=%[[!= | | ?????????????????????????????????# ########## | | ?????????????????????????????????# #?#?### | | ???????????????????????????????#?########???#"" | | ?????????????????????????????????????????#??#"" "" | | ????????????????????????????????????????????#"T "" | | ????????????????????????????????????#????#??#"" "" | | ????????????????????????????????#?????????#?#"" "" | | ?????????????????????????????????#??????#???### "" | +----------------------------------------------------+ Best States ------------- Heat Dissipation 45 Energy Generation 14 Energy Capacity 250 Matter Stores 300 Matter Capacity 300 Sight Range 16 Terrain Scan Range 16 Terrain Scan Density 10 Evasion (%) 43 Offensive Hacking 10 Authchip Count 3 Item Schematics ----------------- None Robot Schematics ------------------ None Fabricated ------------ Nothing Repaired ---------- Spread Laser | 1% | -8/Materials Alien Tech Used ----------------- None Achievements -------------- None Challenges ------------ None Game ------ Seed InterceptSmallProcessor Manual? 0 Play Time 00:22:13 Cumulative 222.1 hours Start 2025.07.26 @ 13:54:26 End 2025.07.26 @ 14:10:15 Sessions 1 Manual Loads 0 Difficulty Rogue Special Mode None Game No. 227 Rogue 227 Adventurer 0 Explorer 0 Win Type - Total 0 Types 0/0/0/0/0/0/0/0/0/0 Lore% 23 Gallery% 57 Achievement% 45 Wizard Run 0 Options --------- Layout 0 ASCII 0 Keyboard 1 Movement Vi Keybinds 0 Fullscreen 1 Font 24/Smallcaps Map View 76x50 Zoom Use 0% Tactical HUD 1 Map Filters NONE Filters NONE Steam 1 RUN: 44ce4f2f-ad3b-4140-a3b6-67dcc82b6b69